bitfinex/quotes_SOLUSD_20240808
["timestamp","ask_amount","ask_price","bid_price","bid_amount"]
[1723144531288,6.3569,157.31,157.26,15.8971]
[1723144531469,6.3569,157.31,157.24,22.5125]
[1723144531470,6.3559,157.34,157.29,6.3573]
[1723144531674,20.0,157.38,157.3,15.8926]
[1723144531675,45.0,157.33,157.3,15.8926]
[1723144532898,45.0,157.33,157.24,54.3107]
[1723144532899,51.3561,157.33,157.29,6.3575]
[1723144534094,45.0,157.33,157.29,15.8938]
[1723144534279,45.0,157.33,157.24,54.3107]
[1723144534480,45.0,157.33,157.32,6.3564]
[1723144534673,6.3545,157.37,157.33,6.3559]
[1723144534877,6.3549,157.36,157.32,6.3564]
[1723144535098,6.3549,157.36,157.31,22.2485]
[1723144535319,16.3268,157.39,157.28,31.7904]
[1723144535320,0.5,157.38,157.28,15.895]
[1723144535478,6.3561,157.33,157.28,22.2528]
[1723144535996,6.3559,157.34,157.28,15.895]
[1723144536187,6.3561,157.33,157.29,6.3576]
[1723144536377,6.3547,157.37,157.31,15.8918]
[1723144536700,20.0,157.36,157.31,15.8918]
[1723144537011,6.3541,157.38,157.33,6.356]
[1723144537303,6.3541,157.38,157.34,6.3556]
[1723144537812,6.3541,157.38,157.33,6.3559]
[1723144537980,6.3544,157.37,157.33,6.3559]
[1723144538681,6.3549,157.36,157.32,6.3564]
[1723144539131,6.3552,157.35,157.31,22.2486]
[1723144539336,45.0,157.34,157.31,22.2486]
[1723144539632,51.3557,157.34,157.29,6.3575]
[1723144539994,0.5,157.33,157.29,6.3575]
[1723144540198,0.5,157.33,157.24,54.3107]
[1723144540199,20.0,157.33,157.25,15.8981]
[1723144540418,6.357,157.31,157.26,6.3585]
[1723144540629,20.0,157.33,157.28,15.8948]
[1723144540806,45.0,157.32,157.31,6.3568]
[1723144541824,6.3548,157.37,157.32,6.3564]
[1723144542027,71.3548,157.36,157.32,6.3564]
[1723144542522,26.3548,157.36,157.32,6.3564]
[1723144543225,9.10906645,157.4,157.32,31.7817]
[1723144543407,6.64548068,157.4,157.33,1.27126185]
[1723144543602,16.661,157.43,157.33,1.27126185]
[1723144543806,16.661,157.43,157.35,6.3551]
[1723144544100,6.3539,157.39,157.34,22.244]
[1723144544305,6.3549,157.36,157.31,44.0452]
[1723144544630,6.3543,157.38,157.33,22.2457]
[1723144544928,51.3544,157.37,157.33,22.2457]
[1723144545301,45.0,157.37,157.27,29.0687]
[1723144545530,6.3571,157.31,157.27,38.6064]
[1723144545710,45.0,157.3,157.27,44.9648]
[1723144545908,45.0,157.3,157.28,6.3579]
[1723144546101,45.0,157.3,157.27,38.6064]
[1723144546102,21.8881,157.38,157.29,6.3576]
[1723144546330,6.3557,157.34,157.3,6.3572]
[1723144546629,45.0,157.33,157.3,6.3572]
[1723144546806,65.0,157.33,157.3,6.3572]
[1723144547009,45.0,157.33,157.31,6.3567]
[1723144547223,6.3553,157.35,157.31,15.8917]
[1723144547427,45.0,157.34,157.31,15.8917]
[1723144548031,45.0,157.34,157.31,22.2485]
[1723144548228,20.0,157.37,157.33,6.3557]
[1723144548426,20.0,157.37,157.33,6.3559]
[1723144548923,20.0,157.37,157.31,15.8917]
[1723144549115,20.0,157.41,157.31,15.8917]
[1723144549319,6.3551,157.36,157.31,22.2484]
[1723144549826,45.0,157.35,157.31,22.2484]
[1723144550045,45.0,157.35,157.28,15.8947]
[1723144550242,20.0,157.34,157.28,15.8947]
[1723144550529,45.0,157.33,157.29,6.3573]
[1723144550706,51.3561,157.33,157.29,6.3573]
[1723144551324,45.0,157.33,157.3,6.357]
[1723144551507,57.3298,157.42,157.31,1.27127317]
[1723144551712,6.3536,157.39,157.34,6.3553]
[1723144551909,57.3298,157.42,157.33,15.8893]
[1723144552116,31.7645,157.41,157.3,15.8925]
[1723144552311,6.3557,157.34,157.3,22.2496]
[1723144552850,15.8856,157.38,157.3,15.8925]
[1723144553022,45.0,157.37,157.27,23.98184848]
[1723144553517,20.0,157.36,157.27,23.98184848]
[1723144553716,51.3555,157.35,157.29,15.8936]
[1723144553910,51.3555,157.35,157.3,6.3572]
[1723144554126,6.3562,157.33,157.29,22.2512]
[1723144554327,6.3565,157.32,157.27,22.7104]
[1723144554533,51.3568,157.31,157.27,29.0688]
[1723144554718,51.3568,157.31,157.27,22.7104]
[1723144554719,45.0,157.3,157.27,22.7104]
[1723144554926,45.0,157.3,157.27,29.0688]
[1723144555632,6.6479053,157.35,157.28,15.8944]
[1723144555833,6.356,157.33,157.28,22.2524]
[1723144556156,45.0,157.32,157.23,22.6242]
[1723144556321,65.0,157.32,157.24,1.27177668]
[1723144556523,45.0,157.32,157.28,6.3578]
[1723144556736,51.3565,157.32,157.28,6.3578]
[1723144557528,45.0,157.32,157.23,38.524]
[1723144557751,6.3583,157.28,157.24,6.3596]
[1723144557964,45.0,157.27,157.24,6.3596]
[1723144558124,45.0,157.27,157.26,6.3588]
[1723144558453,45.0,157.27,157.25,15.8976]
[1723144559043,6.3579,157.29,157.16,15.5173]
[1723144559044,60.1159,157.28,157.16,15.5173]
[1723144559353,20.0,157.27,157.16,15.5173]
[1723144559564,45.0,157.26,157.23,6.3599]
[1723144559724,45.0,157.26,157.16,16.78940896]
[1723144559725,51.3589,157.26,157.22,22.2612]
[1723144559925,45.0,157.26,157.22,22.2612]
[1723144560126,51.3589,157.26,157.22,22.2612]
[1723144560328,45.0,157.26,157.22,15.9008]
[1723144560549,45.0,157.26,157.23,6.3598]
[1723144560751,6.3573,157.3,157.25,6.3591]
[1723144560956,20.0,157.3,157.24,31.5759]
[1723144561158,20.0,157.3,157.26,6.3586]
[1723144561354,26.3575,157.3,157.25,6.3592]
[1723144561522,6.3582,157.28,157.24,31.5759]
[1723144561728,6.3582,157.28,157.24,37.9355]
[1723144561950,6.3577,157.29,157.24,37.9355]
[1723144562260,45.0,157.28,157.24,37.9355]
[1723144562639,45.0,157.28,157.25,6.3592]
[1723144562854,45.0,157.28,157.26,6.3585]
[1723144563158,45.0,157.29,157.25,6.3592]
[1723144563339,45.0,157.29,157.26,6.3585]
[1723144563864,26.3573,157.3,157.25,6.3591]
[1723144564034,20.0,157.3,157.26,15.8964]
[1723144564233,51.29089303,157.42,157.27,1.27164515]
[1723144564234,34.99,157.39,157.27,1.27164515]
[1723144564452,6.3545,157.37,157.33,6.3559]
[1723144564850,39.14366486,157.44,157.34,6.3556]
[1723144564851,6.3537,157.39,157.34,6.3556]
[1723144565173,6.3534,157.4,157.33,1.27104809]
[1723144565338,6.3538,157.39,157.34,15.8881]
[1723144565535,6.3544,157.37,157.32,22.8402]
[1723144565731,48.04731167,157.44,157.32,16.4839]
[1723144565953,34.99,157.41,157.3,6.3409]
[1723144566255,6.3554,157.35,157.3,12.6981]
[1723144566453,45.0,157.34,157.3,12.6981]
[1723144566667,6.3557,157.34,157.3,6.3409]
[1723144566840,45.0,157.33,157.3,6.3409]
[1723144567030,45.0,157.33,157.3,6.3572]
[1723144567541,45.0,157.34,157.3,6.3572]
[1723144567873,45.0,157.34,157.28,15.5051]
[1723144568151,45.0,157.34,157.25,15.8978]
[1723144568359,20.0,157.33,157.25,17.16949483]
[1723144568654,45.0,157.32,157.3,6.3569]
[1723144568857,45.0,157.34,157.3,6.3569]
[1723144569373,51.3557,157.34,157.29,22.2511]
[1723144570170,26.44349002,157.43,157.31,15.8915]
[1723144570171,50.9435,157.41,157.31,15.8915]
[1723144570351,50.9435,157.41,157.24,16.61176724]
[1723144570352,47.34057328,157.4,157.28,15.895]
[1723144570673,15.8861,157.37,157.25,15.8978]
[1723144570847,6.3561,157.33,157.28,6.3579]
[1723144571245,45.0,157.32,157.28,6.3579]
[1723144571762,45.0,157.32,157.24,15.3403]
[1723144571965,6.3581,157.28,157.24,21.6999]
[1723144572154,45.0,157.27,157.24,21.6999]
[1723144572355,6.3589,157.26,157.22,6.1238]
[1723144572557,51.3585,157.27,157.22,12.4842]
[1723144572752,45.0,157.27,157.23,6.36]
[1723144572953,45.0,157.28,157.24,6.3596]
[1723144573378,45.0,157.28,157.23,17.17201017]
[1723144573553,45.0,157.28,157.26,6.3588]
[1723144573752,45.0,157.28,157.23,17.17201017]
[1723144574159,45.0,157.28,157.25,6.3592]
[1723144574471,45.0,157.28,157.23,15.9001]
[1723144574966,45.0,157.28,157.25,6.3592]
[1723144575171,45.0,157.29,157.25,6.3592]
[1723144575383,6.3596,157.25,157.2,31.6478]
[1723144575672,26.65045102,157.28,157.22,15.9006]
[1723144575873,45.0,157.27,157.25,6.3592]
[1723144576051,45.0,157.29,157.25,6.3592]
[1723144576368,45.0,157.29,157.24,22.2583]
[1723144576570,45.0,157.29,157.2,15.745]
[1723144576571,20.0,157.28,157.2,15.745]
[1723144576777,45.5,157.27,157.19,6.3616]
[1723144576956,6.3598,157.24,157.19,6.3616]
[1723144577284,45.0,157.23,157.19,6.3616]
[1723144577583,0.5,157.22,157.16,16.5544]
[1723144577795,6.3605,157.22,157.17,6.3621]
[1723144577963,45.0,157.21,157.18,6.362]
[1723144578276,45.0,157.21,157.19,6.3616]
[1723144578477,45.0,157.22,157.19,6.3616]
[1723144579277,45.0,157.22,157.18,6.362]
[1723144579953,6.361,157.21,157.16,22.9172]
[1723144580276,51.3615,157.2,157.14,22.3741]
[1723144580462,51.3615,157.2,157.15,6.363]
[1723144580776,45.0,157.2,157.15,6.3632]
[1723144580953,51.3616,157.2,157.15,6.3632]
[1723144581152,45.0,157.2,157.15,1.2725838]
[1723144581681,51.3613,157.2,157.14,22.3741]
[1723144581865,45.0,157.2,157.14,22.3741]
[1723144582065,45.0,157.2,157.16,15.9067]
[1723144582279,45.0,157.2,157.17,6.3622]
[1723144582469,6.3613,157.2,157.16,22.2695]
[1723144582784,45.0,157.19,157.16,15.9067]
[1723144583287,45.0,157.19,157.16,22.2695]
[1723144583781,51.3614,157.2,157.16,15.9067]
[1723144584181,45.0,157.2,157.16,15.9067]
[1723144584369,45.0,157.2,157.16,17.1792963]
[1723144584572,45.0,157.2,157.17,6.3622]
[1723144584882,6.3589,157.26,157.18,1.27245982]
[1723144585062,6.6487,157.27,157.16,31.8127]
[1723144585063,6.3596,157.25,157.2,22.2637]
[1723144585263,6.6487,157.27,157.18,6.3618]
[1723144585583,6.6487,157.27,157.17,1.27210531]
[1723144585584,22.5454,157.27,157.19,6.3616]
[1723144585767,6.3593,157.25,157.2,6.3612]
[1723144585968,6.3581,157.28,157.23,6.36]
[1723144586286,15.7268,157.3,157.24,6.3594]
[1723144586581,15.7268,157.3,157.22,6.3604]
[1723144586764,15.7268,157.3,157.2,15.9027]
[1723144586964,6.3597,157.24,157.2,15.9027]
[1723144587288,15.8966,157.27,157.17,15.9057]
[1723144587461,15.8987,157.25,157.16,6.3625]
[1723144587659,6.361,157.21,157.15,16.1719]
[1723144587875,6.361,157.21,157.16,6.3626]
[1723144588081,20.0,157.24,157.17,15.9062]
[1723144588266,45.0,157.23,157.19,6.3614]
[1723144588476,45.0,157.23,157.2,6.3611]
[1723144588787,51.3598,157.24,157.19,22.2654]
[1723144588984,6.3601,157.23,157.19,22.2654]
[1723144589284,45.0,157.22,157.19,22.2654]
[1723144589661,20.0,157.25,157.15,16.1719]
[1723144589861,20.0,157.27,157.2,6.3612]
[1723144590183,20.0,157.27,157.18,22.2665]
[1723144590409,26.3586,157.27,157.16,31.8144]
[1723144590566,6.3593,157.25,157.2,6.3612]
[1723144590761,26.3599,157.24,157.19,22.2654]
[1723144591068,20.0,157.24,157.2,6.361]
[1723144591260,6.3604,157.23,157.19,15.9038]
[1723144592074,6.3604,157.23,157.19,22.2654]
[1723144592394,26.3598,157.24,157.19,22.2654]
[1723144592589,45.0,157.23,157.19,22.2654]
[1723144592979,6.3593,157.25,157.19,15.9038]
[1723144593177,6.3592,157.26,157.21,15.9018]
[1723144593384,51.3593,157.25,157.21,22.2626]
[1723144593887,45.0,157.25,157.18,15.9047]
[1723144594198,51.3596,157.25,157.2,6.3613]
[1723144594893,51.3593,157.25,157.2,6.3613]
[1723144595103,6.359,157.26,157.2,15.9027]
[1723144595290,6.3601,157.23,157.17,15.9057]
[1723144595481,15.8968,157.27,157.17,17.17782124]
[1723144595793,6.36,157.24,157.2,6.3611]
[1723144595978,6.3597,157.24,157.19,15.9038]
[1723144596179,6.3597,157.24,157.2,1.27191825]
[1723144596393,45.0,157.23,157.2,1.27191825]
[1723144596602,45.0,157.23,157.19,22.2654]
[1723144596800,15.9013,157.22,157.14,6.4652]
[1723144597108,45.0,157.21,157.12,6.3644]
[1723144597295,6.3626,157.17,157.12,6.3644]
[1723144597597,45.0,157.16,157.12,6.3644]
[1723144597780,6.364,157.14,157.09,6.3657]
[1723144597985,6.364,157.14,157.08,32.2077]
[1723144598185,45.0,157.16,157.11,6.3649]
[1723144598186,51.3633,157.16,157.11,6.3649]
[1723144598398,51.3633,157.16,157.12,6.3644]
[1723144599302,6.3634,157.15,157.11,6.3648]
[1723144600196,6.3633,157.15,157.11,6.3648]
[1723144600385,45.0,157.14,157.1,22.2781]
[1723144600581,45.0,157.16,157.1,22.2781]
[1723144600783,6.3638,157.14,157.1,15.9128]
[1723144601098,6.3638,157.14,157.1,22.2783]
[1723144601099,45.0,157.13,157.1,22.2783]
[1723144601311,45.0,157.13,157.07,15.9161]
[1723144601480,45.0,157.13,157.04,15.2837]
[1723144601978,45.0,157.14,157.04,15.2837]
[1723144602304,45.0,157.14,157.07,6.3665]
[1723144602305,6.365,157.11,157.07,6.3665]
[1723144602610,45.0,157.1,157.07,6.3665]
[1723144602818,45.0,157.1,157.06,22.2838]
[1723144603110,45.0,157.1,157.07,6.3665]
[1723144603404,45.0,157.11,157.07,6.3665]
[1723144604816,45.0,157.11,157.06,17.19006212]
[1723144605015,20.0,157.13,157.09,6.3656]
[1723144605190,6.3632,157.16,157.1,17.18547302]
[1723144605392,13.00089765,157.17,157.1,15.9125]
[1723144605698,30.0,157.11,157.1,15.9125]
[1723144606102,30.0,157.11,157.1,22.2778]
[1723144607006,6.3634,157.15,157.1,22.2778]
[1723144607188,45.0,157.14,157.1,22.2778]
[1723144608298,45.0,157.14,157.08,6.3658]
[1723144608508,6.3642,157.13,157.08,6.3658]
[1723144608705,45.0,157.12,157.09,6.3656]
[1723144608913,45.0,157.12,157.07,15.9158]
[1723144608914,45.0,157.12,157.08,6.366]
[1723144609609,45.0,157.12,157.07,22.2823]
[1723144609786,51.3646,157.12,157.07,22.2823]
[1723144610396,6.3649,157.11,157.07,15.9158]
[1723144610587,6.3658,157.09,157.05,6.3672]
[1723144610808,45.0,157.08,157.04,22.2865]
[1723144610992,20.0,157.11,157.04,22.2865]
[1723144611188,6.3658,157.09,157.04,22.2865]
[1723144611393,6.367,157.06,157.02,6.3683]
[1723144612092,6.3674,157.05,157.01,22.2908]
[1723144612290,6.367,157.06,157.01,22.2908]
[1723144612612,45.0,157.1,156.99,1.27364949]
[1723144612797,6.366,157.09,157.04,6.3677]
[1723144612994,45.0,157.08,157.04,6.3677]
[1723144613298,51.3663,157.08,157.04,6.3677]
[1723144613494,51.3663,157.08,157.03,6.3681]
[1723144613703,6.3667,157.07,157.02,22.2893]
[1723144613911,45.0,157.06,157.03,6.3678]
[1723144614087,51.3662,157.08,157.03,6.3678]
[1723144615119,6.3667,157.07,157.03,6.3678]
[1723144615423,6.3675,157.05,157.0,6.3691]
[1723144615599,6.3675,157.05,157.01,6.3689]
[1723144615600,45.0,157.04,157.01,6.3689]
[1723144615804,0.5,157.03,156.96,15.4615]
[1723144616200,6.3691,157.01,156.95,16.7433369]
[1723144616406,6.3691,157.01,156.97,6.3705]
[1723144616407,45.0,157.0,156.97,6.3705]
[1723144616616,45.0,157.0,156.96,6.3709]
[1723144617322,45.0,157.0,156.97,6.3705]
[1723144617896,45.0,157.0,156.96,6.3709]
[1723144618113,45.0,157.0,156.95,23.1146369]
[1723144618114,51.3695,157.0,156.95,23.1146369]
[1723144618308,6.3699,156.99,156.95,23.1146369]
[1723144618490,45.0,156.98,156.95,16.7433369]
[1723144618814,45.0,157.0,156.97,6.3706]
[1723144619113,51.369,157.01,156.97,6.3706]
[1723144619919,51.369,157.01,156.96,6.3709]
[1723144620413,6.3695,157.0,156.95,23.1146369]
[1723144620596,45.0,156.99,156.96,6.371]
[1723144620915,6.3696,157.0,156.95,23.1146369]
[1723144621117,45.0,156.99,156.95,23.1146369]
[1723144621417,45.5,156.99,156.95,16.7433369]
[1723144621618,0.5,156.98,156.95,16.7433369]
[1723144621815,6.8702,156.98,156.95,0.8156369]
[1723144622017,45.0,156.97,156.95,0.8156369]
[1723144623726,45.0,156.98,156.95,0.8156369]
[1723144624609,45.0,156.98,156.95,7.1869369]
[1723144624808,45.0,156.98,156.95,7.1870369]
[1723144625220,16.0996,157.04,156.95,0.8156369]
[1723144625447,6.3683,157.03,156.98,6.37]
[1723144625625,6.66015856,157.06,156.95,0.8156369]
[1723144625930,15.6404,157.07,157.03,22.2884]
[1723144626225,15.6404,157.07,157.02,6.3684]
[1723144626421,6.3677,157.05,157.0,22.2922]
[1723144626931,6.3686,157.03,156.98,12.7577]
[1723144627107,6.3686,157.02,156.98,6.3876]
[1723144627632,6.3682,157.03,156.98,6.3876]
[1723144627829,57.26848581,157.09,156.96,6.3709]
[1723144627830,6.369,157.01,156.96,6.3709]
[1723144628529,51.3694,157.0,156.95,0.8156369]
[1723144628825,45.0,156.99,156.96,6.3707]
[1723144628997,45.0,157.02,156.97,6.3705]
[1723144629413,45.0,157.02,156.96,22.298]
[1723144629599,51.3689,157.02,156.96,22.298]
[1723144630437,6.3691,157.01,156.96,15.9271]
[1723144630637,51.3694,157.0,156.95,0.8156369]
[1723144630808,51.3699,156.99,156.95,0.8156369]
[1723144631009,6.8702,156.98,156.95,0.8156369]
[1723144631315,45.0,156.97,156.95,0.8156369]
[1723144631695,45.0,156.98,156.95,0.8156369]
[1723144633011,45.0,156.98,156.95,7.1866369]
[1723144633907,45.0,156.98,156.95,0.8156369]
[1723144634124,45.0,156.99,156.95,0.8156369]
[1723144635230,51.3698,156.99,156.95,0.8156369]
[1723144635463,45.0,156.99,156.95,0.8156369]
[1723144635608,6.3722,156.94,156.9,6.0654]
[1723144635805,45.0,156.93,156.88,22.6517]
[1723144636329,51.3724,156.93,156.88,22.6517]
[1723144636628,45.0,156.93,156.88,22.6517]
[1723144637718,51.3723,156.93,156.88,16.2777]
[1723144637928,45.0,156.93,156.88,22.6519]
[1723144638327,45.0,156.93,156.89,15.9342]
[1723144638633,45.0,156.93,156.89,23.58248037]
[1723144638940,45.0,156.94,156.88,16.2777]
[1723144639133,45.0,156.94,156.87,6.3746]
[1723144639334,45.0,156.94,156.87,7.64938372]
[1723144639639,6.3726,156.92,156.86,28.3367]
[1723144639824,45.0,156.91,156.87,6.3746]
[1723144640337,45.0,156.92,156.84,15.4579]
[1723144640543,6.3735,156.9,156.85,6.3753]
[1723144640749,45.0,156.89,156.85,6.3753]
[1723144640941,45.0,156.89,156.84,15.4579]
[1723144640942,0.5,156.88,156.84,15.4579]
[1723144641144,0.5,156.88,156.81,6.3771]
[1723144641145,20.5,156.88,156.81,6.3771]
[1723144641338,51.375,156.87,156.81,6.3771]
[1723144641846,6.3751,156.86,156.81,6.3771]
[1723144642019,51.3748,156.87,156.81,6.3771]
[1723144642346,45.0,156.87,156.8,22.3207]
[1723144642642,15.9382,156.86,156.79,0.8156369]
[1723144642953,6.3764,156.83,156.79,0.8156369]
[1723144643243,6.3771,156.81,156.79,0.8156369]
[1723144643430,45.0,156.8,156.79,0.8156369]
[1723144645222,51.3775,156.8,156.79,0.8156369]
[1723144645417,71.3775,156.8,156.79,0.8156369]
[1723144645640,65.0,156.8,156.79,0.8156369]
[1723144646234,45.0,156.8,156.79,0.8156369]
[1723144646548,15.9742,156.85,156.79,7.1935369]
[1723144646549,8.9437253,156.85,156.79,7.1935369]
[1723144646729,20.0,156.84,156.79,7.1935369]
[1723144646920,20.0,156.84,156.8,1.27541653]
[1723144647123,2.58769304,156.92,156.81,6.1329]
[1723144647349,6.0447,156.94,156.86,6.3751]
[1723144647557,6.3731,156.91,156.86,6.3751]
[1723144648046,6.3735,156.9,156.85,1.27494048]
[1723144648232,6.3731,156.91,156.86,1.27490065]
[1723144648438,6.3731,156.91,156.86,1.27485873]
[1723144648636,6.3731,156.91,156.86,6.375]
[1723144649037,6.3727,156.92,156.86,6.375]
[1723144649350,38.94246907,156.95,156.86,6.375]
[1723144649351,6.3725,156.93,156.87,7.64945788]
[1723144649561,6.3727,156.92,156.87,1.27485788]
[1723144649849,2.57135223,156.96,156.88,6.3742]
[1723144649850,6.3723,156.93,156.88,6.3742]
[1723144650229,22.416,156.98,156.86,15.9372]
[1723144650436,6.3729,156.92,156.86,22.3119]
[1723144650645,6.66004819,156.96,156.86,15.9372]
[1723144650837,24.99648797,156.98,156.87,1.27457514]
[1723144651036,6.3703,156.98,156.92,6.3723]
[1723144651340,6.3706,156.97,156.93,1.27432849]
[1723144652359,6.3706,156.97,156.92,1.27428256]
[1723144652754,6.3706,156.97,156.93,1.27428242]
[1723144653150,6.3699,156.99,156.93,7.64638242]
[1723144653641,6.3702,156.98,156.93,1.27428242]
[1723144653954,6.3711,156.96,156.93,1.2742071]
[1723144654264,25.9466678,157.03,156.89,16.2298]
[1723144654265,6.3724,156.93,156.89,16.2298]
[1723144654468,45.0,156.95,156.86,6.4316]
[1723144654759,20.0,156.94,156.86,6.4316]
[1723144654964,45.0,156.93,156.86,6.4316]
[1723144655341,6.3735,156.9,156.85,31.6511]
[1723144655663,6.3735,156.9,156.85,15.9383]
[1723144655982,6.3731,156.91,156.85,22.3138]
[1723144656262,6.3727,156.92,156.86,6.375]
[1723144656574,71.3731,156.91,156.85,22.3137]
[1723144656861,6.3735,156.9,156.85,22.3137]
[1723144657270,26.3731,156.91,156.85,22.3137]
[1723144658246,20.0,156.91,156.86,6.3748]
[1723144658842,26.373,156.91,156.85,22.3137]
[1723144659562,20.0,156.91,156.82,54.256]
[1723144659858,6.3739,156.89,156.84,6.3759]
[1723144660061,20.0,156.92,156.84,6.3759]
[1723144660368,6.3737,156.9,156.84,6.3759]
[1723144660744,45.0,156.91,156.82,22.373]
[1723144661065,6.3747,156.87,156.82,28.7496]
[1723144661246,6.3756,156.85,156.81,15.7128]
[1723144663073,6.3752,156.86,156.81,15.7128]
[1723144663266,6.375,156.87,156.81,22.0898]
[1723144663642,6.3753,156.86,156.81,15.7128]
[1723144664040,6.3756,156.85,156.81,15.7128]
[1723144664568,22.59672227,156.9,156.81,15.7128]
[1723144664569,6.3752,156.86,156.81,15.7128]
[1723144664773,51.3756,156.85,156.79,23.1379369]
[1723144664952,45.0,156.85,156.79,0.8156369]
[1723144665359,0.5,156.84,156.79,0.8156369]
[1723144665751,6.3768,156.82,156.79,0.8156369]
[1723144665947,0.5,156.84,156.79,0.8156369]
[1723144666263,6.3768,156.82,156.79,0.8156369]
[1723144666878,6.3763,156.83,156.79,0.8156369]
[1723144667172,45.0,156.82,156.79,0.8156369]
[1723144667671,6.3775,156.8,156.79,0.8156369]
[1723144667852,51.3775,156.8,156.79,0.8156369]
[1723144668054,6.3764,156.83,156.79,0.8156369]
[1723144668258,65.0,156.82,156.79,0.8156369]
[1723144668846,71.3768,156.82,156.79,0.8156369]
[1723144669155,65.0,156.82,156.79,0.8156369]
[1723144669355,71.3767,156.82,156.79,0.8156369]
[1723144669561,26.3767,156.82,156.79,0.8156369]
[1723144670141,20.0,156.82,156.79,0.8156369]
[1723144670365,6.3767,156.82,156.79,0.8156369]
[1723144671167,2.47685477,156.86,156.79,0.8156369]
[1723144671344,6.3766,156.83,156.79,0.8156369]
[1723144671548,6.3767,156.82,156.79,0.8156369]
[1723144673663,6.3772,156.81,156.79,0.8156369]
[1723144674544,6.3775,156.8,156.79,0.8156369]
[1723144675492,6.3775,156.8,156.74,28.7132]
[1723144675493,6.3788,156.77,156.74,6.3842]
[1723144675854,6.3788,156.77,156.73,15.3057]
[1723144676475,45.0,156.8,156.73,15.3057]
[1723144676658,6.5994,156.86,156.74,1.27548154]
[1723144676859,6.66373633,156.87,156.78,6.3782]
[1723144677171,6.3771,156.82,156.77,6.029]
[1723144678005,6.3764,156.83,156.77,12.4077]
[1723144678271,289.5594,156.88,156.78,15.9452]
[1723144678272,6.3755,156.85,156.78,15.9452]
[1723144678468,6.3755,156.85,156.79,7.65299511]
[1723144678782,6.3759,156.84,156.79,7.65299511]
[1723144678952,6.3759,156.84,156.79,6.3778]
[1723144679564,6.3755,156.85,156.79,6.3776]
[1723144679886,6.376,156.84,156.78,22.3235]
[1723144680060,257.0,156.88,156.77,6.029]
[1723144680061,15.9372,156.87,156.77,6.029]
[1723144680249,15.9418,156.83,156.73,21.6788]
[1723144680454,6.3787,156.77,156.73,21.6788]
[1723144680680,6.3784,156.78,156.73,21.6788]
[1723144680984,6.3784,156.78,156.74,1.27571971]
[1723144681291,51.3788,156.77,156.73,21.6788]
[1723144681455,6.3788,156.77,156.73,21.6788]
[1723144682280,15.9418,156.83,156.73,21.6788]
[1723144682478,45.0,156.82,156.73,21.6788]
[1723144682780,20.0,156.81,156.73,28.0591]
[1723144682961,6.3784,156.78,156.73,21.6788]
[1723144683164,6.3787,156.77,156.73,21.6788]
[1723144683483,6.3784,156.78,156.73,21.6788]
[1723144684186,6.3789,156.77,156.73,21.6788]
[1723144684568,6.3791,156.76,156.73,21.6788]
[1723144685177,6.3805,156.73,156.69,22.2521]
[1723144685376,0.5,156.78,156.69,22.2521]
[1723144685680,6.3802,156.74,156.69,22.2521]
[1723144685882,15.9474,156.77,156.69,22.2521]